fUST/lending_fUST_20250901
["ID","MTS","AMOUNT","RATE_DAILY","PERIOD"]
[382786633,1756732233354,-151.0,0.00013165,2]
[382786634,1756732233364,-151.0,0.00013165,2]
[382786635,1756732233373,-250.0,0.00013165,2]
[382786636,1756732233383,-500.0,0.00013165,2]
[382786637,1756732233392,-500.0,0.00013165,2]
[382786638,1756732233402,-250.0,0.00013165,2]
[382786639,1756732233411,-250.0,0.00013165,2]
[382786640,1756732233420,-151.0,0.00013165,2]
[382786641,1756732233429,-500.0,0.00013165,2]
[382786642,1756732233439,-500.0,0.00013165,2]
[382786643,1756732233448,-500.0,0.00013165,2]
[382786644,1756732233458,-250.0,0.00013165,2]
[382786645,1756732233467,-500.0,0.00013165,2]
[382786646,1756732233477,-500.0,0.00013165,2]
[382786647,1756732233486,-250.0,0.00013165,2]
[382786648,1756732233495,-500.0,0.00013165,2]
[382786649,1756732233505,-250.0,0.00013165,2]
[382786650,1756732233515,-500.0,0.00013165,2]
[382786651,1756732233524,-500.0,0.00013165,2]
[382786652,1756732233536,-443.93404605,0.00013165,2]
[382786653,1756732233547,-250.0,0.00013165,2]
[382786654,1756732233557,-500.0,0.00013165,2]
[382786655,1756732233567,-151.0,0.00013165,2]
[382786656,1756732233576,-151.0,0.00013165,2]
[382786657,1756732233586,-151.0,0.00013165,2]
[382786658,1756732233595,-151.0,0.00013165,2]
[382786659,1756732233605,-151.0,0.00013165,2]
[382786660,1756732233615,-151.0,0.00013165,2]
[382786661,1756732233624,-1000.0,0.00013165,2]
[382786662,1756732233634,-151.0,0.00013165,2]
[382786663,1756732233644,-1000.0,0.00013165,2]
[382786664,1756732233653,-151.0,0.00013165,2]
[382786665,1756732233663,-1000.0,0.00013165,2]
[382786666,1756732233672,-151.0,0.00013165,2]
[382786667,1756732233682,-1000.0,0.00013165,2]
[382786668,1756732233691,-151.0,0.00013165,2]
[382786669,1756732233702,-1000.0,0.00013165,2]
[382786670,1756732233711,-349.72651183,0.00013165,2]
[382786671,1756732233721,-261.08060482,0.00013165,2]
[382786672,1756732233732,-1000.0,0.00013165,2]
[382786673,1756732233741,-1000.0,0.00013165,2]
[382786674,1756732233751,-1000.0,0.00013165,2]
[382786675,1756732233761,-1000.0,0.00013165,2]
[382786676,1756732233770,-333.99349716,0.00013165,2]
[382786677,1756732233780,-1000.0,0.00013165,2]
[382786678,1756732233790,-1000.0,0.00013165,2]
[382786679,1756732233803,-1000.0,0.00013165,2]
[382786680,1756732233812,-1000.0,0.00013165,2]
[382786681,1756732233822,-1000.0,0.00013165,2]
[382786682,1756732233831,-1000.0,0.00013165,2]
[382786683,1756732233840,-1000.0,0.00013165,2]
[382786684,1756732233851,-1000.0,0.00013165,2]
[382786685,1756732233860,-1000.0,0.00013165,2]
[382786686,1756732233869,-788.97289488,0.00013165,2]
[382786687,1756732233879,-487.13988393,0.00013172,2]
[382786688,1756732233888,-500.0,0.00013172,2]
[382786689,1756732233897,-500.0,0.00013172,2]
[382786690,1756732233906,-500.0,0.00013172,2]
[382786691,1756732233916,-500.0,0.00013172,2]
[382786692,1756732233925,-500.0,0.00013172,2]
[382786693,1756732233935,-500.0,0.00013172,2]
[382786694,1756732233944,-500.0,0.00013172,2]
[382786695,1756732233953,-500.0,0.00013172,2]
[382786696,1756732233962,-500.0,0.00013172,2]
[382786697,1756732233972,-500.0,0.00013172,2]
[382786698,1756732233981,-500.0,0.00013172,2]
[382786699,1756732233991,-500.0,0.00013172,2]
[382786700,1756732234001,-500.0,0.00013172,2]
[382786701,1756732234010,-315.12038257,0.00013172,2]
[382786702,1756732234020,-12463.42768091,0.00013173,2]
[382786703,1756732234029,-2158.59336755,0.00013173,2]
[382786704,1756732234039,-151.0,0.00013173,2]
[382786705,1756732234048,-1048.0,0.00013264,2]
[382786706,1756732234057,-1048.0,0.0001331,2]
[382786707,1756732234066,-236.48518226,0.00013326,2]
[382786708,1756732234076,-800.0,0.00013337,2]
[382786709,1756732234085,-1048.0,0.00013343,2]
[382786710,1756732234094,-800.0,0.00013348,2]
[382786711,1756732234103,-1070.95980301,0.00013354,2]
[382786712,1756732234317,-800.0,0.0001337,2]
[382786713,1756732234327,-800.0,0.00013394,2]
[382786714,1756732234337,-275.9,0.00013414,2]
[382786715,1756732234346,-800.0,0.00013434,2]
[382786716,1756732234355,-492.33960661,0.00013439,2]
[382786717,1756732234365,-241.10112319,0.00013441,2]
[382786718,1756732234375,-800.0,0.00013479,2]
[382786719,1756732234384,-800.0,0.00013509,2]
[382786720,1756732234394,-800.0,0.00013514,2]
[382786721,1756732234404,-404.66449689,0.00013517,2]
[382786722,1756732234414,-800.0,0.00013532,2]
[382786723,1756732234424,-800.0,0.00013564,2]
[382786724,1756732234433,-800.0,0.00013576,2]
[382786725,1756732234443,-800.0,0.00013587,2]
[382786726,1756732234452,-6431.72064503,0.00013598,2]
[382786727,1756732234462,-1000.0,0.00013598,2]
[382786728,1756732234471,-156.0,0.000136,2]
[382786729,1756732234481,-156.0,0.000136,2]
[382786730,1756732234491,-1288.1438041,0.000136,2]
[382786731,1756732234500,-729.0,0.00013621,2]
[382786732,1756732234510,-1048.0,0.00013672,2]
[382786733,1756732234519,-500.0,0.00013689,2]
[382786734,1756732234529,-151.0,0.00013689,2]
[382786735,1756732234538,-500.0,0.00013689,2]
[382786736,1756732234547,-151.75506122,0.00013689,2]
[382786737,1756732234556,-151.0,0.00013689,2]
[382786738,1756732234565,-151.0,0.00013689,2]
[382786739,1756732234575,-152.33332027,0.00013689,2]
[382786740,1756732234584,-151.0,0.00013689,2]
[382786741,1756732234594,-151.0,0.00013689,2]
[382786742,1756732234603,-151.0,0.00013689,2]
[382786743,1756732234612,-242.3268336,0.00013689,2]
[382786744,1756732234622,-1006.0,0.00013689,2]
[382786745,1756732234631,-151.0,0.00013689,2]
[382786746,1756732234640,-151.0,0.00013689,2]
[382786747,1756732234650,-151.0,0.00013689,2]
[382786748,1756732234660,-151.0,0.00013689,2]
[382786749,1756732234670,-151.0,0.00013689,2]
[382786750,1756732234680,-197.03558623,0.00013689,2]
[382786751,1756732234689,-152.17108138,0.00013689,2]
[382786752,1756732234699,-151.0,0.0001369,2]
[382786753,1756732234708,-151.0,0.0001369,2]
[382786754,1756732234718,-1048.0,0.00013693,2]
[382786755,1756732234727,-500.0,0.00013698,2]
[382786756,1756732234736,-480.0,0.00013698,2]
[382786757,1756732234745,-480.0,0.00013698,2]
[382786758,1756732234755,-480.0,0.00013698,2]
[382786759,1756732234764,-480.0,0.00013698,2]
[382786760,1756732234773,-480.0,0.00013698,2]
[382786761,1756732234784,-480.0,0.00013698,2]
[382786762,1756732234796,-480.0,0.00013698,2]
[382786763,1756732234809,-480.0,0.00013698,2]
[382786764,1756732234818,-480.0,0.00013698,2]
[382786765,1756732234828,-480.95497772,0.00013698,2]
[382786766,1756732234838,-480.0,0.00013698,2]
[382786767,1756732234847,-480.0,0.00013698,2]
[382786768,1756732234857,-480.0,0.00013698,2]
[382786769,1756732234866,-480.0,0.00013698,2]
[382786770,1756732234877,-480.0,0.00013698,2]
[382786771,1756732234887,-480.0,0.00013698,2]
[382786772,1756732234897,-480.0,0.00013698,2]
[382786773,1756732234907,-480.0,0.00013698,2]
[382786774,1756732234917,-480.0,0.00013698,2]
[382786775,1756732234927,-480.0,0.00013698,2]
[382786776,1756732234946,-480.0,0.00013698,2]
[382786777,1756732234961,-481.90123479,0.00013698,2]
[382786778,1756732234976,-480.0,0.00013698,2]
[382786779,1756732234995,-480.0,0.00013698,2]
[382786780,1756732235016,-480.0,0.00013698,2]
[382786781,1756732235031,-371.6251656,0.00013698,2]
[382786782,1756732235040,-480.0,0.00013698,2]
[382786783,1756732235051,-481.15084301,0.00013698,2]
[382786784,1756732235061,-480.0,0.00013698,2]
[382786785,1756732235071,-480.0,0.00013698,2]
[382786786,1756732235080,-480.0,0.00013698,2]
[382786787,1756732235090,-482.32835045,0.00013698,2]
[382786788,1756732235099,-480.0,0.00013698,2]
[382786789,1756732235109,-480.0,0.00013698,2]
[382786790,1756732235119,-406.80765003,0.00013698,2]
[382786791,1756732235128,-480.0,0.00013698,2]
[382786792,1756732235137,-481.0238034,0.00013698,2]
[382786793,1756732235147,-480.0,0.00013698,2]
[382786794,1756732235156,-484.0963283,0.00013698,2]
[382786795,1756732235166,-237.63333473,0.00013698,2]
[382786796,1756732235175,-480.0,0.00013698,2]
[382786797,1756732235185,-458.28482953,0.00013698,2]
[382786798,1756732235194,-480.0,0.00013698,2]
[382786799,1756732235204,-480.0,0.00013698,2]
[382786800,1756732235213,-480.0,0.00013698,2]
[382786801,1756732235222,-480.0,0.00013698,2]
[382786802,1756732235232,-480.0,0.00013698,2]
[382786803,1756732235241,-480.0,0.00013698,2]
[382786804,1756732235251,-480.0,0.00013698,2]
[382786805,1756732235260,-480.0,0.00013698,2]
[382786806,1756732235270,-480.0,0.00013698,2]
[382786807,1756732235279,-480.0,0.00013698,2]
[382786808,1756732235288,-458.75755418,0.00013698,2]
[382786809,1756732235298,-480.0,0.00013698,2]
[382786810,1756732235308,-480.0,0.00013698,2]
[382786811,1756732235317,-482.67994199,0.00013698,2]
[382786812,1756732235327,-480.0,0.00013698,2]
[382786813,1756732235335,-482.06845669,0.00013698,2]
[382786814,1756732235346,-480.0,0.00013698,2]
[382786815,1756732235357,-480.0,0.00013698,2]
[382786816,1756732235366,-480.0,0.00013698,2]
[382786817,1756732235376,-589.44,0.00013698,2]
[382786818,1756732235385,-480.0,0.00013698,2]
[382786819,1756732235395,-480.0,0.00013698,2]
[382786820,1756732235404,-480.0,0.00013698,2]
[382786821,1756732235413,-480.0,0.00013698,2]
[382786822,1756732235422,-480.0,0.00013698,2]
[382786823,1756732235431,-480.0,0.00013698,2]
[382786824,1756732235441,-480.0,0.00013698,2]
[382786825,1756732235451,-480.0,0.00013698,2]
[382786826,1756732235460,-480.0,0.00013698,2]
[382786827,1756732235469,-553.06440306,0.00013698,2]
[382786828,1756732235478,-480.0,0.00013698,2]
[382786829,1756732235487,-480.0,0.00013698,2]
[382786830,1756732235504,-480.0,0.00013698,2]
[382786831,1756732235513,-480.0,0.00013698,2]
[382786832,1756732235522,-480.0,0.00013698,2]
[382786833,1756732235532,-480.0,0.00013698,2]
[382786834,1756732235541,-480.0,0.00013698,2]
[382786835,1756732235550,-480.0,0.00013698,2]
[382786836,1756732235560,-480.0,0.00013698,2]
[382786837,1756732235569,-480.0,0.00013698,2]
[382786838,1756732235579,-333.26479426,0.00013698,2]
[382786839,1756732235588,-480.0,0.00013698,2]
[382786840,1756732235597,-480.0,0.00013698,2]
[382786841,1756732235607,-673.09,0.00013698,2]
[382786842,1756732235618,-480.0,0.00013698,2]
[382786843,1756732235628,-480.0,0.00013698,2]
[382786844,1756732235638,-480.0,0.00013698,2]
[382786845,1756732235648,-480.0,0.00013698,2]
[382786846,1756732235658,-461.33591421,0.00013698,2]
[382786847,1756732235668,-480.0,0.00013698,2]
[382786848,1756732235677,-273.32416421,0.00013698,2]
[382786849,1756732235689,-961.21,0.00013698,2]
[382786850,1756732235699,-480.0,0.00013698,2]
[382786851,1756732235709,-480.0,0.00013698,2]
[382786852,1756732235718,-486.86272866,0.00013698,2]
[382786853,1756732235728,-480.0,0.00013698,2]
[382786854,1756732235738,-480.0,0.00013698,2]
[382786855,1756732235747,-483.25609583,0.00013698,2]
[382786856,1756732235757,-375.03907875,0.00013698,2]
[382786857,1756732235767,-480.0,0.00013698,2]
[382786858,1756732235776,-480.0,0.00013698,2]
[382786859,1756732235788,-490.14841126,0.00013698,2]
[382786860,1756732235801,-480.0,0.00013698,2]
[382786861,1756732235814,-480.0,0.00013698,2]
[382786862,1756732235824,-480.0,0.00013698,2]
[382786863,1756732235834,-480.0,0.00013698,2]
[382786864,1756732235844,-480.0,0.00013698,2]
[382786865,1756732235854,-280.3093205,0.00013698,2]
[382786866,1756732235864,-480.0,0.00013698,2]
[382786867,1756732235874,-480.0,0.00013698,2]
[382786868,1756732235885,-480.0,0.00013698,2]
[382786869,1756732235896,-313.94828745,0.00013698,2]
[382786870,1756732235905,-480.0,0.00013698,2]
[382786871,1756732235915,-480.0,0.00013698,2]
[382786872,1756732235925,-482.24020155,0.00013698,2]
[382786873,1756732235934,-954.03,0.00013698,2]
[382786874,1756732235943,-480.0,0.00013698,2]
[382786875,1756732235953,-480.0,0.00013698,2]
[382786876,1756732235963,-480.0,0.00013698,2]
[382786877,1756732235973,-490.08,0.00013698,2]
[382786878,1756732235982,-480.0,0.00013698,2]
[382786879,1756732235992,-480.0,0.00013698,2]
[382786880,1756732236002,-480.0,0.00013698,2]
[382786881,1756732236011,-480.0,0.00013698,2]
[382786882,1756732236021,-480.0,0.00013698,2]
[382786883,1756732236032,-480.0,0.00013698,2]
[382786884,1756732236042,-295.55875626,0.00013698,2]
[382786885,1756732236051,-480.0,0.00013698,2]
[382786886,1756732236063,-480.0,0.00013698,2]
[382786887,1756732236072,-480.0,0.00013698,2]
[382786888,1756732236082,-480.0,0.00013698,2]
[382786889,1756732236092,-480.0,0.00013698,2]
[382786890,1756732236101,-480.0,0.00013698,2]
[382786891,1756732236111,-480.0,0.00013698,2]
[382786892,1756732236121,-480.0,0.00013698,2]
[382786893,1756732236132,-480.0,0.00013698,2]
[382786894,1756732236141,-480.0,0.00013698,2]
[382786895,1756732236152,-560.83,0.00013698,2]
[382786896,1756732236163,-279.0681269,0.00013698,2]
[382786897,1756732236173,-755.42,0.00013698,2]
[382786898,1756732236183,-480.0,0.00013698,2]
[382786899,1756732236193,-480.0,0.00013698,2]
[382786900,1756732236203,-554.62,0.00013698,2]
[382786901,1756732236213,-581.62,0.00013698,2]
[382786902,1756732236223,-480.0,0.00013698,2]
[382786903,1756732236234,-213.07700763,0.00013698,2]
[382786904,1756732236245,-480.0,0.00013698,2]
[382786905,1756732236254,-448.87888543,0.00013698,2]
[382786906,1756732236264,-480.0,0.00013698,2]
[382786907,1756732236273,-480.0,0.00013698,2]
[382786908,1756732236284,-482.59676014,0.00013698,2]
[382786909,1756732236294,-480.0,0.00013698,2]
[382786910,1756732236303,-480.0,0.00013698,2]
[382786911,1756732236313,-480.0,0.00013698,2]
[382786912,1756732236322,-480.0,0.00013698,2]
[382786913,1756732236332,-318.8820127,0.00013698,2]
[382786914,1756732236341,-480.0,0.00013698,2]
[382786915,1756732236351,-480.0,0.00013698,2]
[382786916,1756732236360,-480.0,0.00013698,2]
[382786917,1756732236370,-480.0,0.00013698,2]
[382786918,1756732236381,-480.0,0.00013698,2]
[382786919,1756732236391,-480.0,0.00013698,2]
[382786920,1756732236401,-480.0,0.00013698,2]
[382786921,1756732236411,-480.0,0.00013698,2]
[382786922,1756732236421,-480.0,0.00013698,2]
[382786923,1756732236431,-480.0,0.00013698,2]
[382786924,1756732236440,-480.0,0.00013698,2]
[382786925,1756732236450,-481.26547292,0.00013698,2]
[382786926,1756732236460,-179.21455358,0.00013698,2]
[382786927,1756732236481,-300.78544642,0.00013698,2]
[382786928,1756732236491,-483.02386674,0.00013698,2]
[382786929,1756732236500,-151.0,0.00013698,2]
[382786930,1756732236510,-513.51,0.00013698,2]
[382786931,1756732236519,-481.21143917,0.00013698,2]
[382786932,1756732236530,-880.41,0.00013698,2]
[382786933,1756732236539,-480.0,0.00013698,2]
[382786934,1756732236548,-480.0,0.00013698,2]
[382786935,1756732236558,-480.0,0.00013698,2]
[382786936,1756732236567,-852.1,0.00013698,2]
[382786937,1756732236577,-480.0,0.00013698,2]
[382786938,1756732236587,-480.0,0.00013698,2]
[382786939,1756732236596,-480.0,0.00013698,2]
[382786940,1756732236605,-480.0,0.00013698,2]
[382786941,1756732236615,-480.0,0.00013698,2]
[382786942,1756732236624,-480.0,0.00013698,2]
[382786943,1756732236634,-480.0,0.00013698,2]
[382786944,1756732236643,-1006.14,0.00013698,2]
[382786945,1756732236652,-480.0,0.00013698,2]
[382786946,1756732236661,-480.0,0.00013698,2]
[382786947,1756732236671,-480.0,0.00013698,2]
[382786948,1756732236681,-755.33,0.00013698,2]
[382786949,1756732236690,-644.51,0.00013698,2]
[382786950,1756732236700,-549.32,0.00013698,2]
[382786951,1756732236709,-482.59135231,0.00013698,2]
[382786952,1756732236719,-480.0,0.00013698,2]
[382786953,1756732236728,-480.0,0.00013698,2]
[382786954,1756732236738,-480.0,0.00013698,2]
[382786955,1756732236747,-800.68,0.00013698,2]
[382786956,1756732236757,-480.0,0.00013698,2]
[382786957,1756732236766,-480.0,0.00013698,2]
[382786958,1756732236775,-480.0,0.00013698,2]
[382786959,1756732236785,-481.7619985,0.00013698,2]
[382786960,1756732236795,-480.0,0.00013698,2]
[382786961,1756732236807,-480.0,0.00013698,2]
[382786962,1756732236816,-482.03287262,0.00013698,2]
[382786963,1756732236825,-481.10739346,0.00013698,2]
[382786964,1756732236835,-480.0,0.00013698,2]
[382786965,1756732236844,-480.0,0.00013698,2]
[382786966,1756732236854,-519.92539704,0.00013698,2]
[382786967,1756732236862,-727.51,0.00013698,2]
[382786968,1756732236872,-480.0,0.00013698,2]
[382786969,1756732236881,-480.0,0.00013698,2]
[382786970,1756732236891,-781.13,0.00013698,2]
[382786971,1756732236900,-480.0,0.00013698,2]
[382786972,1756732236910,-480.0,0.00013698,2]
[382786973,1756732236919,-480.0,0.00013698,2]
[382786974,1756732236929,-480.0,0.00013698,2]
[382786975,1756732236938,-480.0,0.00013698,2]
[382786976,1756732236947,-480.0,0.00013698,2]
[382786977,1756732236956,-480.0,0.00013698,2]
[382786978,1756732236965,-480.0,0.00013698,2]
[382786979,1756732236975,-480.0,0.00013698,2]
[382786980,1756732236984,-480.0,0.00013698,2]
[382786981,1756732236994,-480.0,0.00013698,2]
[382786982,1756732237003,-480.0,0.00013698,2]
[382786983,1756732237013,-480.0,0.00013698,2]
[382786984,1756732237022,-480.0,0.00013698,2]
[382786985,1756732237031,-480.0,0.00013698,2]
[382786986,1756732237041,-480.0,0.00013698,2]
[382786987,1756732237050,-480.0,0.00013698,2]
[382786988,1756732237059,-480.0,0.00013698,2]
[382786989,1756732237069,-480.0,0.00013698,2]
[382786990,1756732237078,-482.5620938,0.00013698,2]
[382786991,1756732237087,-480.0,0.00013698,2]
[382786992,1756732237096,-480.0,0.00013698,2]
[382786993,1756732237105,-480.0,0.00013698,2]
[382786994,1756732237114,-500.0,0.00013698,2]
[382786995,1756732237123,-500.0,0.00013698,2]
[382786996,1756732237132,-500.0,0.00013698,2]
[382786997,1756732237142,-500.0,0.00013698,2]
[382786998,1756732237152,-500.0,0.00013698,2]
[382786999,1756732237161,-500.0,0.00013698,2]
[382787000,1756732237170,-205.5,0.00013698,2]
[382787001,1756732237180,-799.61,0.00013698,2]
[382787002,1756732237189,-480.0,0.00013698,2]
[382787003,1756732237199,-480.0,0.00013698,2]
[382787004,1756732237208,-480.0,0.00013698,2]
[382787005,1756732237217,-538.33,0.00013698,2]
[382787006,1756732237227,-480.0,0.00013698,2]
[382787007,1756732237236,-480.0,0.00013698,2]
[382787008,1756732237246,-773.99,0.00013698,2]
[382787009,1756732237255,-480.0,0.00013698,2]
[382787010,1756732237264,-1000.0,0.00013698,2]
[382787011,1756732237274,-480.0,0.00013698,2]
[382787012,1756732237284,-480.0,0.00013698,2]
[382787013,1756732237294,-480.0,0.00013698,2]
[382787014,1756732237303,-826.55,0.00013698,2]
[382787015,1756732237312,-516.47661945,0.00013698,2]
[382787016,1756732237321,-480.0,0.00013698,2]
[382787017,1756732237330,-480.0,0.00013698,2]
[382787018,1756732237340,-482.43421142,0.00013698,2]
[382787019,1756732237349,-480.0,0.00013698,2]
[382787020,1756732237359,-480.0,0.00013698,2]
[382787021,1756732237368,-897.63,0.00013698,2]
[382787022,1756732237378,-480.0,0.00013698,2]
[382787023,1756732237388,-480.0,0.00013698,2]
[382787024,1756732237397,-480.0,0.00013698,2]
[382787025,1756732237407,-480.0,0.00013698,2]
[382787026,1756732237416,-610.81,0.00013698,2]
[382787027,1756732237426,-480.0,0.00013698,2]
[382787028,1756732237435,-480.0,0.00013698,2]
[382787029,1756732237445,-480.0,0.00013698,2]
[382787030,1756732237454,-480.0,0.00013698,2]
[382787031,1756732237463,-554.72,0.00013698,2]
[382787032,1756732237473,-480.0,0.00013698,2]
[382787033,1756732237482,-480.0,0.00013698,2]
[382787034,1756732237492,-480.0,0.00013698,2]
[382787035,1756732237501,-480.0,0.00013698,2]
[382787036,1756732237510,-480.0,0.00013698,2]
[382787037,1756732237519,-480.0,0.00013698,2]
[382787038,1756732237528,-481.56537606,0.00013698,2]
[382787039,1756732237538,-480.0,0.00013698,2]
[382787040,1756732237548,-465.1288558,0.00013698,2]
[382787041,1756732237557,-480.0,0.00013698,2]
[382787042,1756732237567,-500.0,0.00013698,2]
[382787043,1756732237577,-500.0,0.00013698,2]
[382787044,1756732237587,-500.0,0.00013698,2]
[382787045,1756732237597,-500.0,0.00013698,2]
[382787046,1756732237606,-500.0,0.00013698,2]
[382787047,1756732237616,-480.0,0.00013698,2]
[382787048,1756732237625,-500.0,0.00013698,2]
[382787049,1756732237635,-480.0,0.00013698,2]
[382787050,1756732237644,-830.93,0.00013698,2]
[382787051,1756732237654,-500.0,0.00013698,2]
[382787052,1756732237664,-539.63262941,0.00013698,2]
[382787053,1756732237673,-480.0,0.00013698,2]
[382787054,1756732237683,-480.0,0.00013698,2]
[382787055,1756732237693,-480.0,0.00013698,2]
[382787056,1756732237702,-480.0,0.00013698,2]
[382787057,1756732237712,-480.0,0.00013698,2]
[382787058,1756732237721,-480.0,0.00013698,2]
[382787059,1756732237730,-480.0,0.00013698,2]
[382787060,1756732237740,-480.0,0.00013698,2]
[382787061,1756732237749,-480.0,0.00013698,2]
[382787062,1756732237759,-480.0,0.00013698,2]
[382787063,1756732237768,-480.0,0.00013698,2]
[382787064,1756732237778,-480.0,0.00013698,2]
[382787065,1756732237789,-496.88535369,0.00013698,2]
[382787066,1756732237800,-480.0,0.00013698,2]
[382787067,1756732237811,-480.0,0.00013698,2]
[382787068,1756732237820,-489.14134259,0.00013698,2]
[382787069,1756732237830,-480.0,0.00013698,2]
[382787070,1756732237841,-480.0,0.00013698,2]
[382787071,1756732237851,-281.33145424,0.00013698,2]
[382787072,1756732237861,-480.0,0.00013698,2]
[382787073,1756732237870,-480.0,0.00013698,2]
[382787074,1756732237880,-166.99133856,0.00013698,2]
[382787075,1756732237890,-480.0,0.00013698,2]
[382787076,1756732237899,-480.0,0.00013698,2]
[382787077,1756732237908,-480.0,0.00013698,2]
[382787078,1756732237917,-481.83652388,0.00013698,2]
[382787079,1756732237926,-480.0,0.00013698,2]
[382787080,1756732237935,-481.80445513,0.00013698,2]
[382787081,1756732237944,-480.0,0.00013698,2]
[382787082,1756732237954,-531.71312996,0.00013698,2]
[382787083,1756732237963,-480.0,0.00013698,2]
[382787084,1756732237973,-761.07,0.00013698,2]
[382787085,1756732237982,-480.0,0.00013698,2]
[382787086,1756732237991,-480.0,0.00013698,2]
[382787087,1756732238001,-565.29,0.00013698,2]
[382787088,1756732238010,-320.01086731,0.00013698,2]
[382787089,1756732238019,-480.0,0.00013698,2]
[382787090,1756732238029,-480.0,0.00013698,2]
[382787091,1756732238039,-480.0,0.00013698,2]
[382787092,1756732238048,-480.0,0.00013698,2]
[382787093,1756732238057,-818.25,0.00013698,2]
[382787094,1756732238067,-124.9102499,0.00013698,2]
[382787102,1756732238491,-723.1197501,0.00013698,2]
[382787103,1756732238500,-480.0,0.00013698,2]
[382787104,1756732238510,-480.0,0.00013698,2]
[382787105,1756732238519,-480.0,0.00013698,2]
[382787106,1756732238529,-480.0,0.00013698,2]
[382787107,1756732238538,-480.0,0.00013698,2]
[382787108,1756732238547,-423.43040202,0.00013698,2]
[382787110,1756732238557,-480.0,0.00013698,2]
[382787112,1756732238566,-480.0,0.00013698,2]
[382787114,1756732238575,-480.0,0.00013698,2]
[382787116,1756732238584,-480.0,0.00013698,2]
[382787117,1756732238593,-480.0,0.00013698,2]
[382787118,1756732238602,-480.0,0.00013698,2]
[382787120,1756732238612,-480.0,0.00013698,2]
[382787122,1756732238621,-480.0,0.00013698,2]
[382787124,1756732238630,-461.15880936,0.00013698,2]
[382787126,1756732238639,-480.0,0.00013698,2]
[382787128,1756732238648,-480.0,0.00013698,2]
[382787129,1756732238657,-816.96,0.00013698,2]
[382787131,1756732238666,-480.0,0.00013698,2]
[382787132,1756732238675,-480.0,0.00013698,2]
[382787133,1756732238684,-480.0,0.00013698,2]
[382787134,1756732238694,-480.0,0.00013698,2]
[382787135,1756732238703,-480.0,0.00013698,2]
[382787136,1756732238712,-480.0,0.00013698,2]
[382787137,1756732238721,-480.0,0.00013698,2]
[382787138,1756732238731,-500.0,0.00013698,2]
[382787139,1756732238740,-480.0,0.00013698,2]
[382787140,1756732238749,-480.0,0.00013698,2]
[382787141,1756732238759,-480.0,0.00013698,2]
[382787142,1756732238769,-190.2147965,0.00013698,2]
[382787176,1756732239526,-423.0152035,0.00013698,2]
[382787178,1756732239535,-480.0,0.00013698,2]
[382787180,1756732239545,-480.0,0.00013698,2]
[382787182,1756732239555,-480.0,0.00013698,2]
[382787184,1756732239563,-1157.83,0.00013698,2]
[382787186,1756732239573,-334.40506512,0.00013698,2]
[382787188,1756732239582,-208.60472752,0.00013698,2]